bitfinex/quotes_BTCUSD_20251215
["timestamp","ask_amount","ask_price","bid_price","bid_amount"]
[1765794392992,0.001,89820.0,89819.0,0.27268793]
[1765794393303,0.004,89820.0,89819.0,0.27268793]
[1765794393797,0.004,89820.0,89819.0,0.27307123]
[1765794394216,0.001,89820.0,89819.0,0.27307123]
[1765794394410,0.004,89820.0,89819.0,0.27307123]
[1765794394996,0.003,89820.0,89819.0,0.27307123]
[1765794395379,0.004,89820.0,89819.0,0.27307123]
[1765794415306,0.00561287,89820.0,89819.0,0.0003833]
[1765794415521,0.2298283,89820.0,89819.0,0.0003833]
[1765794415720,0.22828042,89820.0,89819.0,0.0003833]
[1765794416420,0.22728042,89820.0,89819.0,0.0003833]
[1765794416650,0.22928042,89820.0,89819.0,0.0003833]
[1765794416804,0.22628042,89820.0,89819.0,0.0003833]
[1765794417017,0.22828042,89820.0,89819.0,0.0003833]
[1765794417439,0.22428042,89820.0,89819.0,0.0003833]
[1765794418866,0.23028042,89820.0,89819.0,0.0003833]
[1765794421705,0.00761287,89820.0,89819.0,0.0003833]
[1765794422397,0.23028042,89820.0,89819.0,0.0003833]
[1765794425974,0.22828042,89820.0,89819.0,0.0003833]
[1765794426485,0.22928042,89820.0,89819.0,0.0003833]
[1765794426892,0.23028042,89820.0,89819.0,0.0003833]
[1765794427282,0.23428042,89820.0,89819.0,0.0003833]
[1765794432772,3.23428042,89820.0,89819.0,0.0003833]
[1765794438232,3.01,89820.0,89819.0,0.0003833]
[1765794438439,3.01,89820.0,89819.0,0.22305333]
[1765794439482,3.006,89820.0,89819.0,0.22305333]
[1765794439670,3.0,89820.0,89819.0,0.22305333]
[1765794439871,3.002,89820.0,89819.0,0.22305333]
[1765794440118,3.005,89820.0,89819.0,0.22305333]
[1765794440643,3.005,89820.0,89819.0,0.27307172]
[1765794448769,3.005,89820.0,89819.0,0.30650246]
[1765794449384,3.0,89820.0,89819.0,0.30650246]
[1765794449803,3.002,89820.0,89819.0,0.33650246]
[1765794450897,3.002,89820.0,89819.0,0.23650246]
[1765794453763,3.002,89820.0,89819.0,0.52720246]
[1765794455545,2.41657663,89820.0,89819.0,0.52720246]
[1765794455758,2.08868261,89820.0,89819.0,0.61258138]
[1765794455970,2.08868261,89820.0,89819.0,1.69472964]
[1765794455971,1.88864957,89820.0,89819.0,1.69472964]
[1765794456184,1.88864957,89820.0,89819.0,1.05572076]
[1765794456405,1.88864957,89820.0,89819.0,0.5827725]
[1765794456644,1.16397875,89820.0,89819.0,1.5677725]
[1765794456856,1.00269866,89820.0,89819.0,1.5677725]
[1765794457095,1.00269866,89820.0,89819.0,1.5867725]
[1765794457096,0.87085245,89820.0,89819.0,1.5867725]
[1765794457333,0.87085245,89820.0,89819.0,1.64627698]
[1765794457334,0.57284355,89820.0,89819.0,1.64627698]
[1765794457545,0.0004,89910.0,89860.0,0.56328682]
[1765794457546,0.01112272,89906.0,89860.0,0.56328682]
[1765794457773,0.0004,89910.0,89860.0,1.56328682]
[1765794458016,0.0004,89910.0,89908.0,0.22244961]
[1765794458232,0.0004,89910.0,89909.0,0.05001839]
[1765794458657,0.0004,89910.0,89908.0,0.27246727]
[1765794458868,0.00078431,89910.0,89908.0,0.27246727]
[1765794459086,0.00078431,89910.0,89908.0,0.05001839]
[1765794459306,0.00239718,89910.0,89907.0,0.01112087]
[1765794459515,0.00239718,89910.0,89900.0,0.01112347]
[1765794459516,0.00161287,89908.0,89900.0,0.01112347]
[1765794459728,0.00161287,89908.0,89903.0,0.01112309]
[1765794459938,0.00154788,89907.0,89904.0,0.01112297]
[1765794460156,0.00161287,89908.0,89905.0,0.01112285]
[1765794460375,0.01278431,89910.0,89905.0,0.01112285]
[1765794460376,0.01278431,89910.0,89909.0,0.27246553]
[1765794460582,0.00878431,89910.0,89909.0,0.27246553]
[1765794461006,0.00878431,89910.0,89909.0,0.05001839]
[1765794461234,0.00078431,89910.0,89909.0,0.05001839]
[1765794461443,0.00078431,89910.0,89902.0,0.05001839]
[1765794461673,0.01112272,89906.0,89902.0,0.05001839]
[1765794461879,0.01112272,89906.0,89900.0,0.01112347]
[1765794461880,0.01112285,89905.0,89900.0,0.01112347]
[1765794462095,0.01112297,89904.0,89899.0,0.01112359]
[1765794462305,0.01112285,89905.0,89899.0,0.01112359]
[1765794462516,0.01112297,89904.0,89897.0,0.01112384]
[1765794462968,0.00161287,89904.0,89901.0,0.01112334]
[1765794463388,0.00161287,89904.0,89897.0,0.01112384]
[1765794463389,0.00161287,89904.0,89897.0,0.05001839]
[1765794463621,0.00161287,89904.0,89898.0,0.01112371]
[1765794463830,0.00161287,89904.0,89897.0,0.06114223]
[1765794464032,0.01273584,89904.0,89897.0,0.06114223]
[1765794464265,0.01273584,89904.0,89897.0,0.01112384]
[1765794464266,0.01267097,89903.0,89897.0,0.01112384]
[1765794464471,0.01112359,89899.0,89891.0,0.05001839]
[1765794464692,0.01112359,89899.0,89893.0,0.05001839]
[1765794464897,0.01112371,89898.0,89891.0,0.05001839]
[1765794465109,0.01112359,89899.0,89891.0,0.05001839]
[1765794465110,0.00161287,89903.0,89893.0,0.05001839]
[1765794465316,0.00161287,89903.0,89892.0,0.2336132]
[1765794465317,0.01112322,89902.0,89895.0,0.01112408]
[1765794465563,0.01112322,89902.0,89896.0,0.01112396]
[1765794465771,0.01112322,89902.0,89897.0,0.01112384]
[1765794466196,0.00261287,89903.0,89899.0,0.01112359]
[1765794466625,0.00161287,89903.0,89899.0,0.01112359]
[1765794466852,0.01273596,89903.0,89898.0,0.01112371]
[1765794467068,0.001,89902.0,89898.0,0.01112371]
[1765794467293,0.001,89902.0,89899.0,0.01112359]
[1765794467518,0.00161287,89903.0,89899.0,0.01112359]
[1765794467711,0.0111226,89907.0,89899.0,0.01112359]
[1765794467712,0.01112285,89905.0,89899.0,0.01112359]
[1765794467935,0.01112285,89905.0,89904.0,0.08357058]
[1765794468137,0.0111226,89907.0,89904.0,0.08357058]
[1765794468339,0.23357319,89908.0,89904.0,0.08357058]
[1765794468571,0.0111226,89907.0,89904.0,0.08357058]
[1765794469182,0.006,89905.0,89901.0,0.01112334]
[1765794469444,0.0111226,89907.0,89900.0,0.01112347]
[1765794469445,0.003,89903.0,89900.0,0.01112347]
[1765794469636,0.003,89903.0,89900.0,0.23359053]
[1765794469843,0.23357529,89907.0,89899.0,0.01112359]
[1765794470045,0.23357529,89907.0,89904.0,0.08357058]
[1765794470249,0.23657529,89907.0,89904.0,0.08357058]
[1765794470467,0.0141226,89907.0,89904.0,0.08357058]
[1765794470684,0.003,89907.0,89906.0,0.27247295]
[1765794470899,0.00078431,89910.0,89907.0,0.0111226]
[1765794471528,0.00078431,89910.0,89909.0,0.22244714]
[1765794471882,0.007,89907.0,89904.0,0.01112297]
[1765794472085,0.007,89907.0,89905.0,0.2335785]
[1765794472327,0.01190654,89910.0,89905.0,0.01112285]
[1765794472556,0.00078431,89910.0,89908.0,0.22244832]
[1765794472719,0.00778431,89910.0,89908.0,0.22244832]
[1765794472884,0.00778431,89910.0,89906.0,0.23357596]
[1765794473084,0.01078431,89910.0,89907.0,0.0111226]
[1765794473316,0.0111226,89907.0,89904.0,0.08357058]
[1765794473529,0.0111226,89907.0,89905.0,0.08357058]
[1765794473530,0.00161287,89907.0,89905.0,0.08357058]
[1765794474159,0.00861287,89907.0,89906.0,0.08357058]
[1765794474656,0.23106495,89907.0,89906.0,0.08357058]
[1765794474858,0.00861287,89907.0,89906.0,0.08357058]
[1765794475051,0.00161287,89907.0,89906.0,0.08357058]
[1765794475277,0.0029945,89907.0,89906.0,0.08357058]
[1765794475474,0.0099945,89907.0,89906.0,0.08357058]
[1765794476038,0.0099945,89907.0,89906.0,0.15583442]
[1765794476039,0.00838163,89907.0,89906.0,0.15583442]
[1765794476444,0.01138163,89907.0,89906.0,0.08357058]
[1765794476877,0.0099945,89907.0,89906.0,0.08357058]
[1765794477079,0.01154238,89907.0,89906.0,0.08357058]
[1765794477340,0.00454238,89907.0,89906.0,0.08357058]
[1765794477610,0.01254238,89907.0,89906.0,0.08357058]
[1765794477812,0.0059945,89907.0,89906.0,0.08357058]
[1765794477991,0.0029945,89907.0,89906.0,0.08357058]
[1765794478188,0.0099945,89907.0,89906.0,0.08357058]
[1765794478392,0.0129945,89907.0,89906.0,0.08357058]
[1765794478572,0.0059945,89907.0,89906.0,0.08357058]
[1765794478773,0.0119945,89907.0,89906.0,0.08357058]
[1765794479576,0.01354238,89907.0,89906.0,0.08357058]
[1765794479942,0.0089945,89907.0,89906.0,0.08357058]
[1765794480142,0.0029945,89907.0,89906.0,0.08357058]
[1765794480367,0.00754238,89907.0,89906.0,0.08357058]
[1765794480566,0.0129945,89907.0,89906.0,0.08357058]
[1765794480720,0.0029945,89907.0,89906.0,0.08357058]
[1765794481176,0.0059945,89907.0,89906.0,0.08357058]
[1765794481590,0.0129945,89907.0,89906.0,0.08357058]
[1765794481798,0.0099945,89907.0,89906.0,0.08357058]
[1765794481942,0.0029945,89907.0,89906.0,0.08357058]
[1765794482167,0.00454238,89907.0,89906.0,0.08357058]
[1765794483208,0.0029945,89907.0,89906.0,0.08357058]
[1765794483426,0.0099945,89907.0,89906.0,0.08357058]
[1765794483621,0.0059945,89907.0,89906.0,0.08357058]
[1765794483991,0.0099945,89907.0,89906.0,0.08357058]
[1765794484216,0.01154238,89907.0,89906.0,0.08357058]
[1765794484420,0.01454238,89907.0,89906.0,0.08357058]
[1765794485001,0.01112446,89892.0,89888.0,0.01112495]
[1765794485202,0.2336095,89894.0,89889.0,0.01112483]
[1765794485401,0.2336095,89894.0,89885.0,0.30607694]
[1765794485402,0.0111252,89886.0,89880.0,0.01112594]
[1765794485643,0.00084115,89889.0,89885.0,0.01112532]
[1765794485844,0.00154788,89888.0,89885.0,0.23363092]
[1765794486043,0.23361215,89893.0,89888.0,0.01112495]
[1765794486385,0.01112421,89894.0,89890.0,0.0111247]
[1765794486558,0.01112371,89898.0,89891.0,0.01112458]
[1765794486776,0.22247763,89897.0,89892.0,0.01112446]
[1765794487078,0.23360147,89897.0,89892.0,0.01112446]
[1765794487236,0.01112347,89900.0,89896.0,0.01112396]
[1765794487415,0.01112359,89899.0,89894.0,0.01112421]
[1765794487601,0.01112371,89898.0,89895.0,0.01112408]
[1765794487809,0.01112359,89899.0,89895.0,0.01112408]
[1765794488273,0.23359355,89900.0,89896.0,0.01112396]
[1765794488475,0.003,89897.0,89896.0,0.01112396]
[1765794488886,0.006,89898.0,89897.0,0.22247683]
[1765794489057,0.22246348,89903.0,89898.0,0.23359737]
[1765794489263,0.01112334,89901.0,89897.0,0.23360016]
[1765794489442,0.007,89900.0,89897.0,0.01112384]
[1765794489649,0.01112322,89902.0,89897.0,0.01112384]
[1765794489847,0.01112322,89902.0,89893.0,0.22248646]
[1765794489848,0.01112384,89897.0,89889.0,0.2224946]
[1765794490049,0.01112371,89898.0,89894.0,0.01112421]
[1765794490246,0.01712371,89898.0,89894.0,0.01112421]
[1765794490456,0.23959876,89898.0,89894.0,0.23360809]
[1765794490859,0.006,89898.0,89895.0,0.23360515]
[1765794491078,0.006,89898.0,89896.0,0.22247841]
[1765794491487,0.00108139,89897.0,89896.0,0.22247841]
[1765794492755,0.00108139,89897.0,89896.0,0.30604899]
[1765794492961,0.00708139,89897.0,89896.0,0.30604899]
[1765794494323,0.01008139,89897.0,89896.0,0.30604899]
[1765794494688,0.01008139,89897.0,89893.0,0.01112433]
[1765794494857,0.009,89897.0,89894.0,0.01112421]
[1765794495078,0.00154788,89896.0,89893.0,0.01112433]
[1765794495284,0.00154788,89896.0,89895.0,0.22248178]
[1765794496053,0.003,89897.0,89895.0,0.22248178]
[1765794496259,0.00754788,89896.0,89895.0,0.22248178]
[1765794496457,0.00154788,89896.0,89895.0,0.22248178]
[1765794497247,0.003,89897.0,89896.0,0.2224793]
[1765794497591,0.003,89897.0,89894.0,0.01112421]
[1765794497592,0.00154788,89904.0,89902.0,0.22246439]
[1765794497814,0.00154788,89904.0,89902.0,0.22246384]
[1765794498023,0.00154788,89904.0,89903.0,0.08357058]
[1765794499007,0.00078431,89910.0,89906.0,0.22245456]
[1765794500262,0.00078431,89910.0,89909.0,0.22244714]
[1765794500593,0.002256,89910.0,89909.0,0.22244714]
[1765794501007,0.002256,89910.0,89909.0,0.27246553]
[1765794501411,0.002256,89910.0,89909.0,0.32803557]
[1765794501614,0.002256,89910.0,89909.0,0.27246553]
[1765794501922,0.005256,89910.0,89909.0,0.32803557]
[1765794502124,0.005256,89910.0,89909.0,0.27246553]
[1765794502347,0.011256,89910.0,89909.0,0.27246553]
[1765794502527,0.008256,89910.0,89909.0,0.32803557]
[1765794502726,0.008256,89910.0,89909.0,0.27246553]
[1765794502951,0.011256,89910.0,89909.0,0.56316553]
[1765794503411,0.011256,89910.0,89909.0,0.61873557]
[1765794503640,1e-08,89916.0,89915.0,0.61872072]
[1765794503867,1e-08,89916.0,89915.0,1.61872072]
[1765794504080,0.0004,89929.0,89917.0,0.61861582]
[1765794504081,1e-08,89918.0,89917.0,0.61861582]
[1765794504281,1e-08,89918.0,89917.0,0.6627698]
[1765794504491,1e-08,89918.0,89917.0,1.46671577]
[1765794504820,1e-08,89918.0,89917.0,0.84951577]
[1765794505185,1e-08,89918.0,89917.0,0.87757223]
[1765794505395,1e-08,89922.0,89921.0,0.56313584]
[1765794505589,1e-08,89922.0,89921.0,0.61870588]
[1765794506481,1e-08,89922.0,89921.0,0.69813492]
[1765794506706,1e-08,89922.0,89921.0,0.61870588]
[1765794507202,1e-08,89922.0,89921.0,0.56313584]
[1765794507588,1e-08,89922.0,89921.0,0.69807081]
[1765794507928,1e-08,89922.0,89921.0,0.65550157]
[1765794508086,1e-08,89922.0,89921.0,0.63170588]
[1765794508582,1e-08,89922.0,89921.0,0.57613584]
[1765794508784,1e-08,89922.0,89921.0,0.63170588]
[1765794508989,1e-08,89922.0,89921.0,0.64170588]
[1765794509841,1e-08,89922.0,89921.0,0.66550149]
[1765794510011,1e-08,89922.0,89921.0,0.24541745]
[1765794510447,1e-08,89922.0,89921.0,0.30490835]
[1765794510656,1e-08,89922.0,89921.0,0.24541745]
[1765794511096,1e-08,89922.0,89921.0,0.29543584]
[1765794515439,1e-08,89922.0,89921.0,0.35100588]
[1765794515839,1e-08,89922.0,89921.0,0.29543584]
[1765794516246,1e-08,89922.0,89921.0,0.35100588]
[1765794517161,1e-08,89922.0,89921.0,0.29543584]
[1765794517902,1e-08,89922.0,89921.0,0.35100588]
[1765794518721,1e-08,89922.0,89921.0,0.29543584]
[1765794518887,1e-08,89922.0,89921.0,0.24541745]
[1765794519235,1e-08,89922.0,89921.0,0.29543584]
[1765794520111,1e-08,89922.0,89921.0,0.35100588]
[1765794520510,1e-08,89922.0,89921.0,0.41049678]
[1765794520712,1e-08,89922.0,89921.0,0.35492674]
[1765794520912,1e-08,89922.0,89921.0,0.41049678]
[1765794521301,1e-08,89922.0,89921.0,0.29543584]
[1765794521508,1e-08,89922.0,89921.0,0.35501209]
[1765794521889,1e-08,89922.0,89921.0,0.29543584]
[1765794522294,1e-08,89922.0,89921.0,0.58613584]
[1765794522715,1e-08,89922.0,89921.0,1.20270593]
[1765794522915,1e-08,89922.0,89921.0,0.71883584]
[1765794523117,1e-08,89922.0,89921.0,0.77440588]
[1765794523706,1e-08,89922.0,89921.0,0.87030588]
[1765794523903,1e-08,89922.0,89921.0,0.58613584]
[1765794524110,1e-08,89922.0,89921.0,0.64170588]
[1765794524509,1e-08,89922.0,89921.0,0.58613584]
[1765794524712,1e-08,89922.0,89921.0,0.64170588]
[1765794526710,1e-08,89922.0,89921.0,0.75610588]
[1765794528356,0.00024016,89926.0,89925.0,0.27242595]
[1765794528505,0.00024016,89926.0,89925.0,0.44239599]
[1765794529596,0.00024016,89926.0,89925.0,0.45139599]
[1765794530026,0.00024016,89926.0,89925.0,0.46439599]
[1765794530229,0.00024016,89926.0,89925.0,0.56396368]
[1765794530449,0.00024016,89926.0,89925.0,0.46439599]
[1765794532239,0.00024016,89926.0,89925.0,0.46429604]
[1765794533449,0.00024016,89926.0,89925.0,0.69952595]
[1765794533650,0.00024016,89926.0,89925.0,0.75509599]
[1765794534138,0.0004,89929.0,89928.0,0.56311853]
[1765794534453,0.0002,89964.0,89949.0,0.2723666]
[1765794534652,0.0002,89964.0,89949.0,0.44223669]
[1765794534653,0.00051506,89950.0,89949.0,0.44223669]
[1765794534786,0.00123531,89950.0,89949.0,0.52580727]
[1765794534992,0.00123531,89950.0,89949.0,0.76103718]
[1765794535587,0.00123531,89950.0,89949.0,0.81650727]
[1765794535887,0.00123531,89950.0,89949.0,0.82850727]
[1765794536226,0.00123531,89950.0,89949.0,0.77303718]
[1765794536942,0.00123531,89950.0,89949.0,0.78103718]
[1765794537350,0.00123531,89950.0,89949.0,0.49033718]
[1765794538318,0.00123531,89950.0,89949.0,0.47833718]
[1765794538513,0.00123531,89950.0,89949.0,0.37593718]
[1765794538729,0.00123531,89950.0,89949.0,0.36793718]
[1765794538931,0.00123531,89950.0,89949.0,0.65863718]
[1765794539128,0.00123531,89950.0,89949.0,0.72210727]
[1765794539885,0.00123531,89950.0,89949.0,0.71410727]
[1765794540087,0.00123531,89950.0,89949.0,0.65863718]
[1765794540297,0.00013081,89950.0,89949.0,0.65463718]
[1765794540714,0.00013081,89950.0,89949.0,0.82163198]
[1765794541083,0.00013081,89950.0,89949.0,0.72210727]
[1765794541491,0.00013081,89950.0,89949.0,0.82160269]
[1765794541694,0.00013081,89950.0,89949.0,0.7661326]
[1765794541894,0.00013081,89950.0,89949.0,0.66663718]
[1765794542678,0.00013081,89950.0,89949.0,0.37593718]
[1765794542877,0.00013081,89950.0,89949.0,0.45554656]
[1765794543085,0.00013081,89950.0,89949.0,0.37593718]
[1765794544228,0.00013081,89950.0,89949.0,0.32591879]
[1765794544862,0.00013081,89950.0,89949.0,0.31391879]
[1765794545290,0.00013081,89950.0,89949.0,0.31791879]
[1765794545659,0.00013081,89950.0,89949.0,0.32591879]
[1765794546279,0.00013081,89950.0,89949.0,0.31791879]
[1765794546572,0.00013081,89950.0,89949.0,0.32591879]
[1765794547206,0.00013081,89950.0,89949.0,0.31791879]
[1765794548114,0.00013081,89950.0,89949.0,0.14333487]
[1765794548320,0.00013081,89950.0,89949.0,0.30591879]
[1765794548548,0.00013081,89950.0,89949.0,0.36568308]
[1765794548782,0.00013081,89950.0,89949.0,0.37768308]
[1765794548950,0.00013081,89950.0,89949.0,0.37368308]
[1765794549182,0.00013081,89950.0,89949.0,0.09157058]
[1765794549329,0.00013081,89950.0,89949.0,0.08357058]
[1765794549735,0.00013081,89950.0,89949.0,0.09057058]
[1765794550405,0.00329156,89950.0,89949.0,0.06676429]
[1765794550622,0.2256373,89950.0,89949.0,0.017]
[1765794550770,0.22408942,89950.0,89949.0,0.017]
[1765794551377,0.22408942,89950.0,89949.0,0.007]
[1765794551962,0.22408942,89950.0,89949.0,0.01]
[1765794552170,0.22238035,89936.0,89935.0,0.05976429]
[1765794552388,0.22399322,89936.0,89935.0,0.05976429]
[1765794552596,0.00161287,89936.0,89935.0,0.05976429]
[1765794552813,0.00316075,89936.0,89935.0,0.05976429]
[1765794553216,0.22238701,89934.0,89932.0,0.05976429]
[1765794553371,0.00154788,89933.0,89932.0,0.05976429]
[1765794553582,0.00316075,89933.0,89932.0,0.05976429]
[1765794554219,0.22239519,89930.0,89929.0,0.05976429]
[1765794554444,0.23350976,89932.0,89922.0,0.07088503]
[1765794554445,0.01112037,89925.0,89922.0,0.07088503]
[1765794554665,0.22395883,89924.0,89922.0,0.05976429]
[1765794554829,0.23353142,89924.0,89921.0,0.05976429]
[1765794555140,0.01112,89928.0,89921.0,0.05976429]
[1765794555141,0.23350554,89934.0,89922.0,0.01112074]
[1765794555301,0.00154788,89932.0,89923.0,0.23353225]
[1765794555507,0.00154788,89932.0,89922.0,0.01112074]
[1765794555508,0.00154788,89932.0,89928.0,0.01112]
[1765794555715,0.00154788,89938.0,89929.0,0.01111988]
[1765794555914,0.00154788,89938.0,89932.0,0.006]
[1765794556116,0.00154788,89938.0,89932.0,0.22839025]
[1765794556373,0.00154788,89938.0,89932.0,0.22239025]
[1765794556756,0.00154788,89941.0,89932.0,0.22239025]
[1765794557403,0.0004,89951.0,89945.0,0.22235684]
[1765794557616,0.0004,89951.0,89949.0,0.22234752]
[1765794557909,0.0004,89951.0,89948.0,0.01111753]
[1765794558149,0.0004,89951.0,89948.0,0.23346667]
[1765794558531,0.0004,89951.0,89949.0,0.22234788]
[1765794558730,0.0004,89951.0,89948.0,0.23346667]
[1765794558877,0.0004,89951.0,89949.0,0.2223478]
[1765794559307,0.0004,89951.0,89949.0,0.22234776]
[1765794559524,0.00154788,89950.0,89949.0,0.22234776]
[1765794560487,0.00154788,89950.0,89947.0,0.01111765]
[1765794560628,0.22235404,89947.0,89942.0,0.01111827]
[1765794560833,0.00154788,89946.0,89943.0,0.01111815]
[1765794561065,0.00154788,89946.0,89943.0,0.23348098]
[1765794561273,0.22396621,89947.0,89944.0,0.22236022]
[1765794561447,0.23508386,89947.0,89943.0,0.23348104]
[1765794561662,0.23347358,89946.0,89943.0,0.01111815]
[1765794561847,0.01111815,89943.0,89939.0,0.01111864]
[1765794562185,0.01111815,89943.0,89940.0,0.22237021]
[1765794562400,0.23348137,89943.0,89940.0,0.23348873]
[1765794562531,0.22236566,89942.0,89940.0,0.01111852]
[1765794562730,0.23348163,89943.0,89940.0,0.23348784]
[1765794562962,0.2223663,89942.0,89940.0,0.01111852]
[1765794563168,0.22236799,89941.0,89939.0,0.00011506]
[1765794563366,0.22237046,89940.0,89939.0,0.00011506]
[1765794563953,0.01111815,89943.0,89940.0,0.23348745]
[1765794564296,0.01111815,89943.0,89941.0,0.22236793]
[1765794564499,0.01111827,89942.0,89939.0,0.23360612]
[1765794564709,0.22236811,89941.0,89939.0,0.0112337]
[1765794564909,0.23348393,89942.0,89939.0,0.23360637]
[1765794565108,0.23348125,89943.0,89940.0,0.22236855]
[1765794565313,0.22236554,89942.0,89939.0,0.23360632]
[1765794565924,0.22236096,89944.0,89941.0,0.01111839]
[1765794566235,0.01111802,89944.0,89941.0,0.01111839]
[1765794566439,0.01111827,89942.0,89939.0,0.00011506]
[1765794566642,0.00154788,89941.0,89939.0,0.00011506]
[1765794566847,0.22237046,89940.0,89939.0,0.00011506]
[1765794567248,0.29368876,89940.0,89939.0,0.00011506]
[1765794567447,0.22237046,89940.0,89939.0,0.00011506]
[1765794579506,0.51307046,89940.0,89939.0,0.00011506]
[1765794605062,0.22237046,89940.0,89939.0,0.00011506]
[1765794605891,0.35,89941.0,89939.0,0.00011506]
[1765794606298,0.22237046,89940.0,89939.0,0.00011506]
[1765794606498,0.5723703,89941.0,89939.0,0.00011506]
[1765794606769,0.57236899,89941.0,89939.0,0.00011506]
[1765794606936,0.35,89941.0,89939.0,0.00011506]
[1765794607177,0.003,89941.0,89939.0,0.00011506]
[1765794607351,0.22536858,89941.0,89939.0,0.00011506]
[1765794608095,0.22237046,89940.0,89939.0,0.00011506]
[1765794609331,0.22236819,89941.0,89939.0,0.00011506]
[1765794609653,0.006,89940.0,89939.0,0.00011506]
[1765794609885,0.006,89940.0,89939.0,0.22248792]
[1765794610319,0.01111778,89946.0,89939.0,0.05987935]
[1765794610503,0.22537046,89940.0,89939.0,0.00011506]
[1765794612315,0.22237046,89940.0,89939.0,0.00011506]
[1765794613376,0.23137046,89940.0,89939.0,0.00011506]
[1765794613795,0.22398333,89940.0,89939.0,0.00011506]
[1765794614228,0.23298333,89940.0,89939.0,0.00011506]
[1765794615599,0.22998333,89940.0,89939.0,0.00011506]
[1765794616000,0.22698333,89940.0,89939.0,0.00011506]
[1765794616437,0.23298333,89940.0,89939.0,0.00011506]
[1765794629123,0.01061287,89940.0,89939.0,0.00011506]
[1765794629862,0.23298333,89940.0,89939.0,0.00011506]
[1765794631514,0.01061287,89940.0,89939.0,0.00011506]
[1765794631900,0.009,89940.0,89939.0,0.222488]
[1765794633153,0.003,89940.0,89939.0,0.222488]
[1765794633375,0.23345545,89953.0,89950.0,0.22234574]
[1765794633527,0.01111691,89953.0,89950.0,0.22234574]
[1765794634474,0.23345563,89953.0,89950.0,0.22234574]
[1765794634652,0.0034,89951.0,89950.0,0.22234574]
[1765794635993,0.0094,89951.0,89950.0,0.22234574]
[1765794636199,0.0094,89951.0,89949.0,0.08357058]
[1765794636200,0.22234574,89950.0,89949.0,0.08357058]
[1765794636342,0.23174334,89951.0,89949.0,0.08357058]
[1765794636543,0.0094,89951.0,89949.0,0.08357058]
[1765794636948,0.22574352,89951.0,89949.0,0.08357058]
[1765794637373,0.006,89950.0,89949.0,0.08357058]
[1765794637772,0.22834574,89950.0,89949.0,0.08357058]
[1765794638905,0.006,89950.0,89949.0,0.08357058]
[1765794639054,0.006,89950.0,89949.0,0.30591879]
[1765794639492,0.0004,89951.0,89950.0,0.22234574]
[1765794639689,0.0064,89951.0,89950.0,0.22234574]
[1765794640273,0.0004,89951.0,89950.0,0.22234574]
[1765794641241,0.0004,89951.0,89950.0,0.23434574]
[1765794641412,0.0004,89951.0,89950.0,0.29413115]
[1765794642412,0.0004,89951.0,89950.0,0.23434574]
[1765794642616,0.0004,89951.0,89950.0,0.24234574]
[1765794644281,0.0004,89951.0,89950.0,0.02]
[1765794644483,0.22590402,89951.0,89950.0,0.02]
[1765794644785,0.56546378,89951.0,89950.0,0.02]
[1765794645012,0.51505614,89951.0,89950.0,0.02]
[1765794645870,0.51505614,89951.0,89950.0,0.012]
[1765794646293,0.51505614,89951.0,89950.0,0.013]
[1765794646664,0.51505614,89951.0,89950.0,0.001]
[1765794646995,0.22237046,89940.0,89936.0,0.01111901]
[1765794647173,0.22236855,89941.0,89937.0,0.01111889]
[1765794647360,0.22236855,89941.0,89937.0,0.23349631]
[1765794647984,0.22236855,89941.0,89934.0,0.23350433]
[1765794648189,0.22236855,89941.0,89935.0,0.08357058]
[1765794648317,0.22236855,89941.0,89939.0,0.00411506]
[1765794649161,0.00154788,89940.0,89939.0,0.00411506]
[1765794649320,0.00154788,89940.0,89939.0,0.00511506]
[1765794649875,0.00154788,89940.0,89939.0,0.00411506]
[1765794650130,0.00154788,89940.0,89939.0,0.00011506]
[1765794650278,0.00154788,89940.0,89939.0,0.00111506]
[1765794650479,0.00154788,89940.0,89939.0,0.00511506]
[1765794650895,0.01111815,89943.0,89939.0,0.00411506]
[1765794651336,0.22237046,89940.0,89939.0,0.00411506]
[1765794651699,0.22237046,89940.0,89939.0,0.00011506]
[1765794652137,0.01111827,89942.0,89939.0,0.00011506]
[1765794652476,0.01111827,89942.0,89939.0,0.00111506]
[1765794652817,0.01111827,89942.0,89939.0,0.00011506]
[1765794653194,0.22637046,89940.0,89939.0,0.00011506]
[1765794653842,0.22337046,89940.0,89939.0,0.00011506]
[1765794654382,0.29391583,89940.0,89939.0,0.00011506]
[1765794654599,0.22337046,89940.0,89939.0,0.00011506]
[1765794655839,0.22737046,89940.0,89939.0,0.00011506]
[1765794660681,0.005,89940.0,89939.0,0.00011506]
[1765794661294,0.22737046,89940.0,89939.0,0.00011506]
[1765794663065,0.005,89940.0,89939.0,0.00011506]
[1765794663270,0.0002,89978.0,89954.0,0.01111679]
[1765794663470,0.0002,89978.0,89959.0,1.56304189]
[1765794663708,0.0002,89978.0,89958.0,0.22232597]
[1765794663709,1e-08,89968.0,89967.0,1.56302212]
[1765794663921,9.742e-05,89978.0,89977.0,0.22227902]
[1765794664071,9.742e-05,89978.0,89977.0,0.6184675]
[1765794664268,9.742e-05,89978.0,89977.0,0.71782521]
[1765794664473,9.742e-05,89978.0,89977.0,0.88458545]
[1765794664690,9.742e-05,89978.0,89977.0,0.82911536]
[1765794664891,0.00021246,89978.0,89977.0,0.72975765]
[1765794665344,0.00021246,89978.0,89977.0,0.25193813]
[1765794665645,0.00021246,89978.0,89977.0,0.23493813]
[1765794666069,0.00021246,89978.0,89977.0,0.60165652]
[1765794666287,0.00021246,89978.0,89977.0,0.68101594]
[1765794666453,0.00021246,89978.0,89977.0,0.60165652]
[1765794666835,0.00021246,89978.0,89977.0,0.65712661]
[1765794667038,0.00021246,89978.0,89977.0,0.82388685]
[1765794667353,0.00021246,89978.0,89977.0,0.86752212]
[1765794667677,0.00021246,89978.0,89977.0,0.91691813]
[1765794668605,0.00021246,89978.0,89977.0,0.83351206]
[1765794669206,0.05590627,90000.0,89999.0,0.22222469]
[1765794669417,0.05628965,90000.0,89999.0,0.2617917]
[1765794669634,0.05628965,90000.0,89999.0,0.22222469]
[1765794669791,0.05766915,90000.0,89999.0,0.22222469]
[1765794670019,0.05766915,90000.0,89999.0,0.30557886]
[1765794670221,0.05766915,90000.0,89999.0,0.33524191]
[1765794670419,0.05766915,90000.0,89999.0,0.30557886]
[1765794670822,0.05766915,90000.0,89998.0,0.02966305]
[1765794671043,0.22224053,89993.0,89991.0,0.08335417]
[1765794671246,0.22224053,89993.0,89985.0,0.01111296]
[1765794671247,0.01111234,89990.0,89985.0,0.22225814]
[1765794671438,0.01272484,89993.0,89990.0,0.23335803]
[1765794671653,0.01272484,89993.0,89989.0,0.01111246]
[1765794671654,0.23496598,89993.0,89989.0,0.01111246]
[1765794671854,0.01272484,89993.0,89990.0,0.23335875]
[1765794672263,0.00161287,89993.0,89990.0,0.23335875]
[1765794672461,0.00161287,89993.0,89988.0,0.01111259]